Cogmind - Beta 13 @@@ ROGUE MODE // 2024.03.10 @ 20:53:45 Player: Baxter Result: Destroyed by as-65759 with Assembled Rifle Performance ------------- Evolutions (0) 0 Regions Visited (2) 400 Robots Destroyed (14) 70 Value Destroyed (146) 146 Prototype IDs (0) 0 Alien Tech Used (0) 0 Bonus (0) 0 TOTAL SCORE: 616 Bonus ------- None Cogmind --------- Core Integrity 0/250 Matter 239/300 Energy 100/100 System Corruption 1% Temperature Cool (10) Movement Rolling (130) Ox2 Location -10/Mines Parts ------- > --- POWER (1) -------- (None) > --- PROPULSION (2) --- Compact Wheel > --- UTILITY (2) ------ High-capacity Storage Unit > --- WEAPON (2) ------- EM Pulse Gun Grenade Launcher > --- INVENTORY (20) --- Light Ion Engine Light Treads Hover Unit Hover Unit Hover Unit Hover Unit Hover Unit Hover Unit Hover Unit Hover Unit Medium Storage Unit Large Matter Pod (0) Structural Scanner Sensor Array EM Pulse Gun EM Pulse Gun EM Pulse Gun Medium Laser Light Assault Rifle Light Assault Rifle Peak State ------------ > --- POWER ------------ Light Ion Engine > --- PROPULSION ------- Compact Wheel Compact Wheel > --- UTILITY ---------- High-capacity Storage Unit Sensor Array > --- WEAPON ----------- EM Pulse Gun Light Assault Rifle > --- INVENTORY -------- Light Ion Engine Light Treads Hover Unit Hover Unit Hover Unit Hover Unit Hover Unit Hover Unit Hover Unit Hover Unit Medium Storage Unit Large Matter Pod Structural Scanner Sensor Array EM Pulse Gun EM Pulse Gun EM Pulse Gun Medium Laser Light Assault Rifle Grenade Launcher [Rating: 9] Favorites ----------- Power Light Ion Engine Engine Light Ion Engine Propulsion Compact Wheel Treads Light Treads Wheel Compact Wheel Hover Unit Hover Unit Utility Small Storage Unit Device Sensor Array Storage Small Storage Unit Weapon Light Assault Rifle Energy Gun EM Pulse Gun Ballistic Gun Light Assault Rifle Launcher Grenade Launcher Build | -11 -10 -10 ------- Run | Yrd Mat Min Slots Evolved . | . . . Power . | . . . Propulsion . | . . . Utility . | . . . Weapon . | . . . Parts Attached 22 | 7 14 1 Power 1 | 1 . . Engine 1 | 1 . . Core . | . . . Reactor . | . . . Propulsion 8 | 2 6 . Treads 1 | 1 . . Leg . | . . . Wheel 4 | 1 3 . Hover 3 | . 3 . Flight . | . . . Utility 4 | 2 2 . Device 2 | 1 1 . Storage 2 | 1 1 . Processor . | . . . Hackware . | . . . Protection . | . . . Artifact . | . . . Weapon 9 | 2 6 1 Energy Gun 2 | 1 1 . Energy Cannon . | . . . Ballistic Gun 4 | 1 3 . Ballistic Cannon . | . . . Launcher 3 | . 2 1 Special Weapon . | . . . Impact Weapon . | . . . Slashing Weapon . | . . . Piercing Weapon . | . . . Special Melee Weapon . | . . . Unidentified Prototypes . | . . . Parts Lost 4 | . 1 3 Power 1 | . . 1 Propulsion 1 | . . 1 Utility 2 | . 1 1 Weapon . | . . . Highest Loss Streak 3 | . 1 3 To Critical Strikes . | . . . Average Slot Usage (%) 96 | . 97 57 Engine 13 | . 14 . Treads 1 | . 1 . Wheel 15 | . 15 14 Hover 9 | . 9 . Device 11 | . 11 . Storage 14 | . 14 14 Energy Gun 14 | . 14 14 Ballistic Gun 12 | . 12 . Launcher 1 | . 1 14 Naked Turns . | . . . Heaviest Build 49 | 12 49 47 Greatest Support 32 | 20 32 32 Greatest Overweight (x) 1 | 1 1 1 Average Overweight (x) . | . . 1 Largest Inventory Capacity 20 | 8 20 20 Average Capacity 12 | 7 12 20 Most Carried 20 | 6 20 20 Average Carried 10 | 4 11 20 Final Capacity 20 | 8 20 20 Final Carried 20 | 6 20 20 Class Distribution -------------------- 100% | Mutant Dominant Class ---------------- Mutant | -10/Materials Mutant | -10/Mines Resources | -11 -10 -10 ----------- Run | Yrd Mat Min Matter Collected 444 | 274 170 . Remotely 174 | 159 15 . Salvage Created 319 | 50 250 19 Parts 24 | 2 22 . Haulers Intercepted 1 | . 1 . Recyclers Shooed 1 | . 1 . Parts Field Recycled . | . . . Retrieved Matter . | . . . Parts Self-Destructed . | . . . Prevented . | . . . Kills | -11 -10 -10 ------- Run | Yrd Mat Min Combat Hostiles Destroyed 14 | . 9 5 Guns 4 | . 4 . AOE 10 | . 5 5 Classes Destroyed 6 | 1 4 1 Hauler 1 | . 1 . Recycler 2 | 1 1 . Operator 1 | . 1 . Watcher 1 | . 1 . Swarmer 9 | . 9 . Assembled 5 | . . 5 Best Kill Streak 5 | 1 4 5 Combat Bots Only 5 | . 3 5 Max Kills in Single Turn 3 | 1 2 3 Gunslinging . | . . . Exploded 3 | . 2 3 Melee . | . . . Uniques/NPCs Destroyed . | . . . Combat | -11 -10 -10 -------- Run | Yrd Mat Min Hostile Shots Fired 46 | . 30 16 Missed 14 | . 11 3 Damage Taken 572 | . 341 231 Core 260 | . 174 86 Absorbed by Shields . | . . . Regen/Repaired (Parts) 14 | . 14 . Core Remaining (%) 100 | 100 . . Volleys Fired 46 | 4 39 3 Largest 2 | 2 2 1 Hottest 70 | 70 70 30 Shots Fired 76 | 8 65 3 Gun 69 | 8 61 . Cannon . | . . . Launcher 7 | . 4 3 Special . | . . . Kinetic 35 | 4 31 . Thermal 16 | 4 12 . Explosive 7 | . 4 3 Electromagnetic 18 | . 18 . Robot Hit Streak 7 | 2 7 . Robot Miss Streak 4 | 1 4 1 Penetration Max . | . . . Secondary Targets . | . . . Shots Hit Robots 35 | 5 30 . Core Hits 40 | 2 18 20 Critical Kills . | . . . Critical Parts Destroyed . | . . . Critical Strikes 2 | 1 1 . Burn 2 | 1 1 . Melee Attacks . | . . . Impact . | . . . Slashing . | . . . Piercing . | . . . Sneak Attacks . | . . . Combat Hostiles . | . . . Follow-up Attacks . | . . . Damage Inflicted 1012 | 55 582 375 Guns 370 | 55 315 . Cannons . | . . . Explosions 642 | . 267 375 Melee . | . . . Ramming . | . . . Kinetic 123 | 18 105 . Thermal 142 | 37 105 . Explosive 612 | . 237 375 Electromagnetic 135 | . 135 . Impact . | . . . Slashing . | . . . Piercing . | . . . Highest Corruption 1 | . 1 1 Average Corruption 1 | . 1 1 Corruption Purged . | . . . Corruption Blocked . | . . . Effects 1 | . 1 . Energy Discharges 1 | . 1 . Overload Shots . | . . . Overflow Damage 28 | . 28 . Projectiles . | . . . Explosions 28 | . 28 . Melee . | . . . Knockbacks . | . . . Impact . | . . . Kinetic . | . . . Secondary . | . . . Self-Inflicted Damage 60 | . 28 32 Shots 2 | . 1 1 Rammed . | . . . Targets Rammed . | . . . Kicked . | . . . Crushed . | . . . Highest Temperature 72 | 60 72 15 Average Temperature 25 | 32 25 10 Received Heat Transfer 40 | . . 40 Siege Activations . | . . . Robots Corrupted . | . . . Combat Hostiles . | . . . Parts Fried . | . . . Impact Corruptions . | . . . Robots Melted . | . . . Combat Hostiles . | . . . Parts Melted 2 | 1 1 . Heat Transferred 531 | 185 346 . Parts Sabotaged . | . . . Parts Stolen . | . . . Parts Stripped . | . . . Power Chain Reactions 1 | . 1 . Alert | -11 -10 -10 ------- Run | Yrd Mat Min Peak Influence 189 | 5 189 24 Initial 13 | . 3 13 Average 44 | 1 50 15 Maximum Alert Level . | . . . Low Security (%) 100 | 100 100 100 Level 1 . | . . . Level 2 . | . . . Level 3 . | . . . Level 4 . | . . . Level 5 . | . . . High Security . | . . . Max Security . | . . . Squads Dispatched 2 | . 2 . Investigation 1 | . 1 . Extermination . | . . . Reinforcement 1 | . 1 . Assault . | . . . Garrison . | . . . Intercept . | . . . Searches Triggered . | . . . Construction Impeded . | . . . Haulers Reinforced . | . . . Active Scanning Responses . | . . . Cargo Convoy Interrupts . | . . . Stealth | -11 -10 -10 --------- Run | Yrd Mat Min Distress Signals . | . . . Communications Jammed . | . . . Distress Signals . | . . . Times Spotted 37 | . 17 20 Peak Tracking Total 20 | . 3 20 Tactical Retreats 1 | . 1 . Traps | -11 -10 -10 ------- Run | Yrd Mat Min Traps Triggered 4 | . 4 . Indirectly . | . . . Trap Hack Attempts . | . . . Triggered . | . . . Disarmed . | . . . Reprogrammed . | . . . Reused . | . . . Traps Extracted . | . . . Installed . | . . . Triggered . | . . . Machines | -11 -10 -10 ---------- Run | Yrd Mat Min Machines Disabled 1 | . 1 . Max in Single Turn 1 | . 1 . Machines Repaired . | . . . Machines Dismantled . | . . . Machines Sabotaged . | . . . Overloaded Fab Kills . | . . . Hacking | -11 -10 -10 --------- Run | Yrd Mat Min Machines Accessed 8 | . 8 . Terminals 7 | . 7 . Fabricators . | . . . Repair Stations 1 | . 1 . Recycling Units . | . . . Scanalyzers . | . . . Garrison Access . | . . . Total Hacks 17 | . 17 . Successful 12 | . 12 . Failed 4 | . 4 . Catastrophic . | . . . Database Lockouts 1 | . 1 . Manual 18 | . 18 . Terminals 15 | . 15 . Fabricators . | . . . Repair Stations 2 | . 2 . Recycling Units . | . . . Scanalyzers . | . . . Garrison Access . | . . . Terminal Hacks 2 | . 2 . Robot Analysis 1 | . 1 . Recall Reinforcements 1 | . 1 . Fabricator Hacks . | . . . Repair Station Hacks 2 | . 2 . Scan Component 1 | . 1 . Repair 1 | . 1 . Recycling Unit Hacks . | . . . Scanalyzer . | . . . Garrison Access Hacks . | . . . Unauthorized Hacks 8 | . 8 . Terminals 8 | . 8 . Botnet 7 | . 7 . Operators 1 | . 1 . Fabricators . | . . . Repair Stations . | . . . Recycling Units . | . . . Scanalyzers . | . . . Garrison Access . | . . . Data Cores Recovered . | . . . Used . | . . . Hacking Detections 6 | . 6 . Full Trace Events . | . . . Feedback Events . | . . . Feedback Blocked . | . . . Robot Schematics Acquired . | . . . Robots Built . | . . . Authchips . | . . . Time . | . . . Total Robot Build Rating . | . . . Part Schematics Acquired . | . . . Parts Built . | . . . Authchips . | . . . Time . | . . . Total Part Build Rating . | . . . Parts Repaired 1 | . 1 . Time 26 | . 26 . Parts Recycled . | . . . Recycled Matter . | . . . Retrieved Matter . | . . . Retrieved Components . | . . . Parts Scanalyzed . | . . . Part Schematics Acquired . | . . . Parts Damaged . | . . . Bothacking | -11 -10 -10 ------------ Run | Yrd Mat Min Used RIF Installer . | . . . Robots Hacked . | . . . Non-combat . | . . . Combat . | . . . Robot Hacks Applied . | . . . Relay Couplers Released . | . . . Fabnet Peak Effective % . | . . . Robots Rewired . | . . . Allies Hacked . | . . . Hacks Repelled . | . . . Allies | -11 -10 -10 -------- Run | Yrd Mat Min Total Allies . | . . . Largest Group . | . . . Highest-Rated Group . | . . . Highest-Rated Ally . | . . . Total Orders . | . . . Ally Attacks . | . . . Total Damage . | . . . Kills . | . . . Allies Corrupted . | . . . Allies Melted . | . . . Intel | -11 -10 -10 ------- Run | Yrd Mat Min Robot Analysis Total 1 | . 1 . Derelict Logs Recovered . | . . . Drone Launches . | . . . Drone Recoveries . | . . . Exploration | -11 -10 -10 ------------- Run | Yrd Mat Min Turns Passed 1109 | 118 982 9 Spaces Moved 876 | 71 804 1 Core 10 | 10 . . Treads 23 | 23 . . Legs . | . . . Wheels 452 | 38 413 1 Hover 391 | . 391 . Flight . | . . . Fastest Speed 50 | 50 56 115 Average Speed 101 | 113 100 115 Slowest Speed 160 | 160 125 115 Overloaded Moves . | . . . Propulsion Burnouts . | . . . Robots Hopped . | . . . Cave-ins Triggered . | . . . Exploration Rate (%) 35 | 6 96 3 Regions Visited 2 Branch Regions 1 Pre-discovered Areas . | . . . Known Exits Taken . | . . . Unknown Exits Taken 2 | 1 1 . Scrap Searched . | . . . Spaces Dug . | . . . Terrain Destroyed 55 | . 30 25 Melee . | . . . Projectile . | . . . AOE 55 | . 30 25 Terrain Rammed . | . . . Walls Destroyed . | . . . Machines Disabled . | . . . Actions | -11 -10 -10 --------- Run | Yrd Mat Min Total 1021 | 97 919 5 Wait 49 | 10 39 . Move 874 | 70 803 1 Hop . | . . . Pick Up 23 | 6 17 . Fast Attach 11 | 7 4 . Attach . | . . . Detach . | . . . Swap 11 | . 10 1 Drop 7 | . 7 . Fire 46 | 4 39 3 Melee . | . . . Ram . | . . . Kick . | . . . Crush . | . . . Escape Stasis . | . . . Rewire . | . . . Trap . | . . . Miscellaneous . | . . . Route ------- -11/Scrapyard -10/Materials (discovered 4 exits: [*Mat x3] / [*Min]) -10/Mines History --------- Turn | Location | Event 12 | -11/Scrapyard | Discovered new exit (range 16) 119 | -11/Scrapyard | Entered Materials 308 | -10/Materials | Build established: Mutant 404 | -10/Materials | Discovered new exit (range 13) 416 | -10/Materials | Discovered new exit (range 14) 479 | -10/Materials | Central database locked down 567 | -10/Materials | Discovered new exit (range 16) 651 | -10/Materials | Repaired Hover Unit 689 | -10/Materials | Discovered new exit (range 5) 789 | -10/Materials | Core integrity fell below 50% 1101 | -10/Materials | Entered Mines 1102 | -10/Mines | Assembled infested the area 1107 | -10/Mines | Assisted by a Guerilla fighting off Assembled 1107 | -10/Mines | Core integrity fell below 20% 1110 | -10/Mines | Destroyed by as-65759 with Assembled Rifle Last Messages --------------- response squad. 01103_ as-70922 destroyed. 01104_ Knocked back. 01104_ as-00515 destroyed. 01104_ as-58510 destroyed. 01104_ as-42197 destroyed. 01105_ N0-7B0(h): "I'll hold them off! Go on ahead or try to find another way!" 01105_ HV Slug penetrates as-59216. 01105_ as-59216 destroyed. 01106_ Com. Wheel destroyed. 01107_ A derelict emerges from the shadows: "You need to get out of here! I've been tracking a group of Assembled to figure out where they're coming from, and they're closing on this area, come on!" 01107_ as-03284 destroyed. 01108_ as-98989 destroyed. 01108_ as-22636 destroyed. 01109_ Lgt. Ion Engine destroyed. 01109_ Sensor Array destroyed. Map ----- +----------------------------------------------------+ | | | | | | | | | | | | | | | | | ?????????????????????????????? | | ?????????????????????????????? | | ?????????????????????????????? | | ?????????????????????????????? | | ?????????????????????????????? | | ?????????????????????????????? | | ?????????????????????????????? | | ?????????????????????????????? | | ?????????????????????????????? | | ?????????????????????????????? | | ?????????????????????????????? | | ?????????????????????????????? | | ?????????????????????????????? | | ?????????????????????????????? | | ?????????????????????????????? | | ???????????????????????####??? | | ???????????????????????# h##?? | | ????????????# ####a@ #?? | | ???????????# % aa% #?? | | ??????????# aaaa%a #?? | | ??????????# < #### ?? | | ??????????## ??????# #? | | ????????????????????# #? | | ????????????????????## #? | | ?????????????????????## ####? | | ??????????????????????###????? | | ?????????????????????????????? | | ?????????????????????????????? | | ?????????????????????????????? | | ?????????????????????????????? | | ?????????????????????????????? | | ?????????????????????????????? | | ?????????????????????????????? | | ?????????????????????????????? | | ?????????????????????????????? | | ?????????????????????????????? | | ?????????????????????????????? | | ?????????????????????????????? | | ?????????????????????????????? | | ?????????????????????????????? | | ?????????????????????????????? | | ?????????????????????????????? | +----------------------------------------------------+ Best States ------------- Heat Dissipation 25 Energy Generation 10 Energy Capacity 125 Matter Stores 300 Matter Capacity 300 Sight Range 16 Robot Scan Range 14 Terrain Scan Density 10 Evasion (%) 53 Recoil Reduction 1 Item Schematics ----------------- None Robot Schematics ------------------ None Fabricated ------------ Nothing Alien Tech Used ----------------- None Achievements -------------- None Challenges ------------ None Game ------ Seed RestorationAccelerationDrive Manual? 0 Play Time 00:15:35 Cumulative 33.3 hours Start 2024.03.10 @ 20:37:55 End 2024.03.10 @ 20:53:45 Sessions 1 Manual Loads 0 Difficulty Rogue Special Mode None Game No. 34 Rogue 34 Adventurer 0 Explorer 0 Win Type - Total 0 Types 0/0/0/0/0/0/0/0/0 Lore% 22 Gallery% 27 Achievement% 23 Wizard Run 0 Options --------- Layout 1 ASCII 0 Keyboard 0 Movement Numpad Keybinds 0 Fullscreen 2 Font 20/X11 Map View 32x21 Zoom Use 10% Tactical HUD 1 Map Filters NONE Filters NONE Steam 0 RUN: 8c41ca98-36a5-4d5e-afa1-bf066ce11653